[Event "Early-Titled-Tuesday-Blitz-April-16-2024"]
[Site "Chess.com"]
[Date "2024.04.16"]
[Round "8"]
[White "HajiyevKanan"]
[Black "GMG"]
[Result "0-1"]
[WhiteElo "2628"]
[BlackElo "2823"]
[TimeControl "180+1"]
[EndTime "9:31:43 PDT"]
[Termination "GMG won by resignation"]

1. d4 {[%clk 0:03:00.9]} 1... f5 {[%clk 0:02:58.8]} 2. Nf3 {[%clk 0:03:01.6]}
2... Nf6 {[%clk 0:02:58.9]} 3. g3 {[%clk 0:03:02.4]} 3... g6 {[%clk 0:02:58.8]}
4. Bg2 {[%clk 0:03:03.3]} 4... Bg7 {[%clk 0:02:59.4]} 5. O-O {[%clk 0:03:04]}
5... O-O {[%clk 0:02:59.8]} 6. b3 {[%clk 0:03:04.9]} 6... d6 {[%clk 0:02:56]} 7.
Bb2 {[%clk 0:03:05.4]} 7... Ne4 {[%clk 0:02:54.3]} 8. Nbd2 {[%clk 0:03:05.5]}
8... Nc6 {[%clk 0:02:51.4]} 9. c4 {[%clk 0:03:03.2]} 9... Nxd2 {[%clk
0:02:41.8]} 10. Qxd2 {[%clk 0:03:04.1]} 10... e5 {[%clk 0:02:42.4]} 11. dxe5
{[%clk 0:03:02.9]} 11... dxe5 {[%clk 0:02:43]} 12. Qd5+ {[%clk 0:03:03.1]} 12...
Kh8 {[%clk 0:02:43]} 13. Qxd8 {[%clk 0:02:55.6]} 13... Rxd8 {[%clk 0:02:42.2]}
14. Rfd1 {[%clk 0:02:56.2]} 14... e4 {[%clk 0:02:30.3]} 15. Rxd8+ {[%clk
0:02:51.5]} 15... Nxd8 {[%clk 0:02:31.2]} 16. Rd1 {[%clk 0:02:40]} 16... Bxb2
{[%clk 0:02:20.9]} 17. Rxd8+ {[%clk 0:02:40]} 17... Kg7 {[%clk 0:02:21.4]} 18.
Ne1 {[%clk 0:02:17.1]} 18... Bf6 {[%clk 0:02:19.4]} 19. Rd1 {[%clk 0:02:04.6]}
19... Be6 {[%clk 0:02:16.3]} 20. Nc2 {[%clk 0:01:58.7]} 20... Rd8 {[%clk
0:02:14.1]} 21. Rxd8 {[%clk 0:01:58.4]} 21... Bxd8 {[%clk 0:02:15]} 22. f3
{[%clk 0:01:54.8]} 22... exf3 {[%clk 0:02:13.7]} 23. Bxf3 {[%clk 0:01:55]} 23...
c6 {[%clk 0:02:13.3]} 24. e4 {[%clk 0:01:51.1]} 24... Bb6+ {[%clk 0:02:11.5]}
25. Kf1 {[%clk 0:01:49.2]} 25... Kf6 {[%clk 0:02:04.3]} 26. Ke2 {[%clk
0:01:45.7]} 26... Ke5 {[%clk 0:02:04.6]} 27. Kd3 {[%clk 0:01:43.5]} 27... f4
{[%clk 0:02:03.9]} 28. g4 {[%clk 0:01:27.4]} 28... a5 {[%clk 0:01:50.6]} 29. Ke2
{[%clk 0:01:20]} 29... g5 {[%clk 0:01:44.2]} 30. h3 {[%clk 0:01:16.7]} 30... Bc5
{[%clk 0:01:43.9]} 31. Kd3 {[%clk 0:01:16.8]} 31... Ba7 {[%clk 0:01:40]} 32. Na3
{[%clk 0:01:13.4]} 32... h6 {[%clk 0:01:37.2]} 33. Nc2 {[%clk 0:01:12]} 33...
Bc5 {[%clk 0:01:35.8]} 34. Bd1 {[%clk 0:01:03.1]} 34... Bf2 {[%clk 0:01:27.7]}
35. Bf3 {[%clk 0:01:02.8]} 35... b5 {[%clk 0:01:25.1]} 36. Na3 {[%clk 0:00:59]}
36... Bd7 {[%clk 0:01:17.1]} 37. cxb5 {[%clk 0:00:56]} 37... cxb5 {[%clk
0:01:17]} 38. Ke2 {[%clk 0:00:54.4]} 38... Bc5 {[%clk 0:01:12.6]} 39. Nc2 {[%clk
0:00:54.2]} 39... b4 {[%clk 0:01:11.8]} 40. Kd2 {[%clk 0:00:41.1]} 40... Bc6
{[%clk 0:01:03.4]} 41. Ne1 {[%clk 0:00:34]} 41... Be3+ {[%clk 0:00:59.4]} 42.
Kd3 {[%clk 0:00:17.1]} 42... Bb5+ {[%clk 0:00:59]} 43. Kc2 {[%clk 0:00:16.6]}
43... Kd4 {[%clk 0:00:57.8]} 44. Bg2 {[%clk 0:00:13.2]} 44... Bf2 {[%clk
0:00:37.9]} 45. Nf3+ {[%clk 0:00:13.6]} 45... Ke3 {[%clk 0:00:38.4]} 46. e5
{[%clk 0:00:14.3]} 46... Bd7 {[%clk 0:00:31.1]} 47. Nh2 {[%clk 0:00:10.6]} 47...
Bg3 {[%clk 0:00:29.2]} 48. Nf1+ {[%clk 0:00:09.7]} 48... Kf2 {[%clk 0:00:28.2]}
49. Nxg3 {[%clk 0:00:08.9]} 49... fxg3 {[%clk 0:00:28.5]} 50. Bd5 {[%clk
0:00:09.6]} 50... g2 {[%clk 0:00:28.6]} 51. e6 {[%clk 0:00:04.4]} 51... Bxe6
{[%clk 0:00:28]} 52. Bxe6 {[%clk 0:00:04]} 52... g1=Q {[%clk 0:00:28.4]} 0-1

[Event "Early-Titled-Tuesday-Blitz-April-16-2024"]
[Site "Chess.com"]
[Date "2024.04.16"]
[Round "8"]
[White "Oleksandr_Bortnyk"]
[Black "Ramil_Faizrakhmanov"]
[Result "1-0"]
[WhiteElo "3049"]
[BlackElo "2907"]
[TimeControl "180+1"]
[EndTime "9:31:44 PDT"]
[Termination "Oleksandr_Bortnyk won on time"]

1. e4 {[%clk 0:03:00.9]} 1... c6 {[%clk 0:02:59.5]} 2. c4 {[%clk 0:03:00.6]}
2... d5 {[%clk 0:03:00.4]} 3. cxd5 {[%clk 0:03:01.5]} 3... cxd5 {[%clk
0:03:00.6]} 4. exd5 {[%clk 0:03:02.4]} 4... Nf6 {[%clk 0:03:00.8]} 5. Qa4+
{[%clk 0:03:02.4]} 5... Nbd7 {[%clk 0:03:01]} 6. Nc3 {[%clk 0:03:02.8]} 6... g6
{[%clk 0:03:01]} 7. Nf3 {[%clk 0:03:03]} 7... Bg7 {[%clk 0:03:01.4]} 8. Bc4
{[%clk 0:03:03.3]} 8... a6 {[%clk 0:03:01.3]} 9. d3 {[%clk 0:02:45.7]} 9... O-O
{[%clk 0:03:01.3]} 10. Qa3 {[%clk 0:02:45.2]} 10... b6 {[%clk 0:03:01.7]} 11.
O-O {[%clk 0:02:45.2]} 11... Bb7 {[%clk 0:03:02.1]} 12. Re1 {[%clk 0:02:45.1]}
12... b5 {[%clk 0:03:02]} 13. Bb3 {[%clk 0:02:45.1]} 13... Re8 {[%clk
0:02:58.8]} 14. Be3 {[%clk 0:02:45.2]} 14... Nb6 {[%clk 0:02:55.7]} 15. Bxb6
{[%clk 0:02:45.3]} 15... Qxb6 {[%clk 0:02:56.6]} 16. Qb4 {[%clk 0:02:45.6]}
16... Qd6 {[%clk 0:02:42.9]} 17. Qxd6 {[%clk 0:02:45]} 17... exd6 {[%clk
0:02:43.8]} 18. a3 {[%clk 0:02:45.9]} 18... Nd7 {[%clk 0:02:39.4]} 19. d4 {[%clk
0:02:46.2]} 19... Nb6 {[%clk 0:02:35]} 20. Kf1 {[%clk 0:02:43.2]} 20... Kf8
{[%clk 0:02:28.3]} 21. h4 {[%clk 0:02:37.7]} 21... h5 {[%clk 0:02:27.9]} 22.
Rxe8+ {[%clk 0:02:35.1]} 22... Rxe8 {[%clk 0:02:28]} 23. Re1 {[%clk 0:02:34.9]}
23... Bh6 {[%clk 0:02:21.9]} 24. Ng5 {[%clk 0:02:10.5]} 24... Rc8 {[%clk
0:02:03.3]} 25. Nh7+ {[%clk 0:01:51.3]} 25... Kg7 {[%clk 0:02:02.4]} 26. Re7
{[%clk 0:01:52.2]} 26... Rb8 {[%clk 0:01:34]} 27. Ng5 {[%clk 0:01:48.3]} 27...
Bxg5 {[%clk 0:01:34.3]} 28. hxg5 {[%clk 0:01:49.2]} 28... Kf8 {[%clk 0:01:34.8]}
29. Rc7 {[%clk 0:01:47]} 29... a5 {[%clk 0:01:19.4]} 30. Ne4 {[%clk 0:01:29.5]}
30... a4 {[%clk 0:01:01.3]} 31. Nxd6 {[%clk 0:01:17]} 31... Ba6 {[%clk
0:00:56.5]} 32. Rxf7+ {[%clk 0:00:58.7]} 32... Kg8 {[%clk 0:00:56.4]} 33. Bc2
{[%clk 0:00:57.8]} 33... b4+ {[%clk 0:00:53.9]} 34. Ke1 {[%clk 0:00:57]} 34...
Nxd5 {[%clk 0:00:40.7]} 35. Ra7 {[%clk 0:00:51.6]} 35... Rb6 {[%clk 0:00:30.2]}
36. Ra8+ {[%clk 0:00:30.7]} 36... Kg7 {[%clk 0:00:30]} 37. Ne8+ {[%clk
0:00:30.2]} 37... Kf7 {[%clk 0:00:27.2]} 38. Bxa4 {[%clk 0:00:20.6]} 38... bxa3
{[%clk 0:00:26.5]} 39. bxa3 {[%clk 0:00:21.5]} 39... Re6+ {[%clk 0:00:21]} 40.
Kd2 {[%clk 0:00:20.5]} 40... Re2+ {[%clk 0:00:19.3]} 41. Kc1 {[%clk 0:00:21.1]}
41... Re1+ {[%clk 0:00:02.4]} 42. Kb2 {[%clk 0:00:17.6]} 42... Bc4 {[%clk
0:00:01.7]} 43. Nd6+ {[%clk 0:00:17.2]} 1-0

[Event "Early-Titled-Tuesday-Blitz-April-16-2024"]
[Site "Chess.com"]
[Date "2024.04.16"]
[Round "8"]
[White "HamedWafa4"]
[Black "Dixit_Nikhil"]
[Result "1/2-1/2"]
[WhiteElo "2791"]
[BlackElo "2622"]
[TimeControl "180+1"]
[EndTime "9:31:45 PDT"]
[Termination "Game drawn by repetition"]

1. d4 {[%clk 0:03:00.9]} 1... Nf6 {[%clk 0:02:59.8]} 2. Nf3 {[%clk 0:02:56.9]}
2... g6 {[%clk 0:03:00.1]} 3. Bf4 {[%clk 0:02:53.4]} 3... Bg7 {[%clk 0:03:00.6]}
4. Nbd2 {[%clk 0:02:53.7]} 4... O-O {[%clk 0:03:01.3]} 5. e4 {[%clk 0:02:53.9]}
5... a6 {[%clk 0:02:59]} 6. c3 {[%clk 0:02:52.5]} 6... b5 {[%clk 0:02:59.1]} 7.
a4 {[%clk 0:02:52]} 7... Bb7 {[%clk 0:02:57.5]} 8. Bd3 {[%clk 0:02:49.4]} 8...
d6 {[%clk 0:02:51.6]} 9. O-O {[%clk 0:02:47]} 9... Nbd7 {[%clk 0:02:50.2]} 10.
Re1 {[%clk 0:02:46.1]} 10... e5 {[%clk 0:02:41.7]} 11. Bg5 {[%clk 0:02:34.2]}
11... h6 {[%clk 0:02:37.3]} 12. Bxf6 {[%clk 0:02:33.7]} 12... Nxf6 {[%clk
0:02:36.1]} 13. axb5 {[%clk 0:02:33.9]} 13... axb5 {[%clk 0:02:35.2]} 14. Bxb5
{[%clk 0:02:34.1]} 14... Rxa1 {[%clk 0:02:30.5]} 15. Qxa1 {[%clk 0:02:35]} 15...
exd4 {[%clk 0:02:20.9]} 16. cxd4 {[%clk 0:02:34.1]} 16... d5 {[%clk 0:02:13.4]}
17. e5 {[%clk 0:02:32.4]} 17... Ne4 {[%clk 0:02:14]} 18. Bd3 {[%clk 0:02:32.5]}
18... c5 {[%clk 0:02:06.3]} 19. Nxe4 {[%clk 0:02:28.7]} 19... dxe4 {[%clk
0:02:06.5]} 20. Bxe4 {[%clk 0:02:29.6]} 20... Bxe4 {[%clk 0:02:06.9]} 21. Rxe4
{[%clk 0:02:30.5]} 21... Qd5 {[%clk 0:02:02.7]} 22. Qe1 {[%clk 0:02:29.4]} 22...
Rb8 {[%clk 0:01:57]} 23. dxc5 {[%clk 0:02:07.3]} 23... Rxb2 {[%clk 0:01:55.4]}
24. h4 {[%clk 0:01:59.1]} 24... Qxc5 {[%clk 0:01:48.4]} 25. e6 {[%clk 0:01:59]}
25... fxe6 {[%clk 0:01:38.9]} 26. Rxe6 {[%clk 0:01:59.9]} 26... Qf5 {[%clk
0:01:27.7]} 27. Re4 {[%clk 0:01:51.9]} 27... Kh7 {[%clk 0:01:23.2]} 28. Qe3
{[%clk 0:01:46.6]} 28... Rb7 {[%clk 0:01:14.6]} 29. g3 {[%clk 0:01:45.1]} 29...
Qh3 {[%clk 0:01:11.3]} 30. Qd3 {[%clk 0:01:38.6]} 30... Rc7 {[%clk 0:01:04.9]}
31. Re1 {[%clk 0:01:37]} 31... Rd7 {[%clk 0:01:01.6]} 32. Qe4 {[%clk 0:01:35.8]}
32... Rf7 {[%clk 0:00:58.4]} 33. Nh2 {[%clk 0:01:30.1]} 33... Qf5 {[%clk
0:00:40.1]} 34. Qxf5 {[%clk 0:01:29.1]} 34... Rxf5 {[%clk 0:00:40.1]} 35. Re7
{[%clk 0:01:28.9]} 35... Kg8 {[%clk 0:00:39.7]} 36. Rd7 {[%clk 0:01:29.2]} 36...
Rf7 {[%clk 0:00:39.9]} 37. Rd8+ {[%clk 0:01:28.9]} 37... Rf8 {[%clk 0:00:39.8]}
38. Rd6 {[%clk 0:01:29.6]} 38... Rf6 {[%clk 0:00:40.1]} 39. Rd5 {[%clk
0:01:29.4]} 39... Rf5 {[%clk 0:00:38.2]} 40. Rxf5 {[%clk 0:01:29.6]} 40... gxf5
{[%clk 0:00:38.6]} 41. Kg2 {[%clk 0:01:29.6]} 41... Kf7 {[%clk 0:00:38.8]} 42.
h5 {[%clk 0:01:26.2]} 42... Kf6 {[%clk 0:00:37.5]} 43. f4 {[%clk 0:01:25]} 43...
Bf8 {[%clk 0:00:37.5]} 44. Kf3 {[%clk 0:01:25.1]} 44... Bb4 {[%clk 0:00:37.9]}
45. Nf1 {[%clk 0:01:25.4]} 45... Be1 {[%clk 0:00:37.4]} 46. Ne3 {[%clk
0:01:25.5]} 46... Ke6 {[%clk 0:00:37.7]} 47. Ng2 {[%clk 0:01:25]} 47... Ba5
{[%clk 0:00:37]} 48. Ke2 {[%clk 0:01:23]} 48... Kf6 {[%clk 0:00:36]} 49. Ne3
{[%clk 0:01:18.4]} 49... Ke6 {[%clk 0:00:36.4]} 50. Nc4 {[%clk 0:01:18.2]} 50...
Bc7 {[%clk 0:00:35.7]} 51. Ne3 {[%clk 0:01:17]} 51... Bb6 {[%clk 0:00:34.1]} 52.
Kd3 {[%clk 0:01:16.6]} 52... Bxe3 {[%clk 0:00:20.4]} 53. Kxe3 {[%clk 0:01:16.8]}
53... Kd5 {[%clk 0:00:21]} 54. Kd3 {[%clk 0:01:17.2]} 54... Kc5 {[%clk
0:00:21.5]} 55. Ke2 {[%clk 0:01:14.8]} 55... Kd5 {[%clk 0:00:21.4]} 56. Kf3
{[%clk 0:01:14.1]} 56... Kd4 {[%clk 0:00:21.8]} 57. g4 {[%clk 0:01:11.9]} 57...
fxg4+ {[%clk 0:00:21.8]} 58. Kxg4 {[%clk 0:01:12.8]} 58... Ke4 {[%clk
0:00:21.5]} 59. Kg3 {[%clk 0:01:13.2]} 59... Kd5 {[%clk 0:00:19]} 60. Kf3 {[%clk
0:01:13.1]} 60... Kd4 {[%clk 0:00:19.2]} 61. f5 {[%clk 0:01:08.8]} 61... Ke5
{[%clk 0:00:13.9]} 62. Kg4 {[%clk 0:01:09.2]} 62... Kd6 {[%clk 0:00:12]} 63. Kf4
{[%clk 0:01:10.1]} 63... Kd5 {[%clk 0:00:12.4]} 64. Kf3 {[%clk 0:01:06.8]} 64...
Ke5 {[%clk 0:00:12.8]} 65. Kg4 {[%clk 0:01:06.8]} 65... Kd6 {[%clk 0:00:13.3]}
66. Kh4 {[%clk 0:00:59.3]} 66... Ke5 {[%clk 0:00:12.2]} 67. Kg4 {[%clk
0:00:59.9]} 1/2-1/2

[Event "Early-Titled-Tuesday-Blitz-April-16-2024"]
[Site "Chess.com"]
[Date "2024.04.16"]
[Round "8"]
[White "Eloist"]
[Black "Fjal"]
[Result "0-1"]
[WhiteElo "2476"]
[BlackElo "2336"]
[TimeControl "180+1"]
[EndTime "9:31:51 PDT"]
[Termination "Fjal won on time"]

1. e4 {[%clk 0:03:00.9]} 1... d6 {[%clk 0:02:55.4]} 2. d4 {[%clk 0:03:00.2]}
2... g6 {[%clk 0:02:56.1]} 3. Nc3 {[%clk 0:03:00.3]} 3... Bg7 {[%clk 0:02:56.8]}
4. Nf3 {[%clk 0:03:00.7]} 4... a6 {[%clk 0:02:57.3]} 5. Bc4 {[%clk 0:02:58.6]}
5... b5 {[%clk 0:02:51.4]} 6. Bd5 {[%clk 0:02:58.5]} 6... c6 {[%clk 0:02:50.2]}
7. Bb3 {[%clk 0:02:58.2]} 7... e6 {[%clk 0:02:46.7]} 8. O-O {[%clk 0:02:57]}
8... Ne7 {[%clk 0:02:45.5]} 9. e5 {[%clk 0:02:55.1]} 9... d5 {[%clk 0:02:17.4]}
10. Ne2 {[%clk 0:02:52.6]} 10... c5 {[%clk 0:02:15.3]} 11. c3 {[%clk 0:02:52.5]}
11... Nbc6 {[%clk 0:02:14.4]} 12. a4 {[%clk 0:02:45.2]} 12... c4 {[%clk
0:02:09.2]} 13. Bc2 {[%clk 0:02:44.6]} 13... b4 {[%clk 0:02:09.3]} 14. b3 {[%clk
0:02:41.3]} 14... bxc3 {[%clk 0:02:05.7]} 15. Nxc3 {[%clk 0:02:34.1]} 15... Na5
{[%clk 0:02:05.7]} 16. b4 {[%clk 0:02:28.9]} 16... Nac6 {[%clk 0:02:03.9]} 17.
Rb1 {[%clk 0:02:25.4]} 17... Rb8 {[%clk 0:01:51.4]} 18. b5 {[%clk 0:02:22.1]}
18... axb5 {[%clk 0:01:41.3]} 19. axb5 {[%clk 0:02:22]} 19... Na7 {[%clk
0:01:36.2]} 20. h4 {[%clk 0:02:04.3]} 20... Bd7 {[%clk 0:01:34.5]} 21. h5 {[%clk
0:02:01.8]} 21... Nxb5 {[%clk 0:01:27.7]} 22. Nxb5 {[%clk 0:02:01.2]} 22... Rxb5
{[%clk 0:01:28.6]} 23. Rxb5 {[%clk 0:01:50.7]} 23... Bxb5 {[%clk 0:01:29.5]} 24.
h6 {[%clk 0:01:50]} 24... Bf8 {[%clk 0:01:29.4]} 25. Bg5 {[%clk 0:01:48.2]}
25... Qd7 {[%clk 0:01:26.8]} 26. Qa1 {[%clk 0:01:39]} 26... Nc8 {[%clk
0:01:20.6]} 27. Rb1 {[%clk 0:01:37.2]} 27... Be7 {[%clk 0:00:33.6]} 28. Rxb5
{[%clk 0:01:34.5]} 28... Bxg5 {[%clk 0:00:27]} 29. Nxg5 {[%clk 0:01:32.4]} 29...
O-O {[%clk 0:00:23.9]} 30. Qb1 {[%clk 0:01:24.7]} 30... Qd8 {[%clk 0:00:18.7]}
31. f4 {[%clk 0:01:22.3]} 31... Ne7 {[%clk 0:00:18.7]} 32. Rb7 {[%clk
0:01:21.5]} 32... Nf5 {[%clk 0:00:18.3]} 33. Bxf5 {[%clk 0:01:16.9]} 33... gxf5
{[%clk 0:00:19.2]} 34. Qe1 {[%clk 0:01:10.5]} 34... Qe8 {[%clk 0:00:19]} 35. Qg3
{[%clk 0:01:08.7]} 35... Kh8 {[%clk 0:00:19.6]} 36. Nxe6 {[%clk 0:01:04.7]}
36... Rg8 {[%clk 0:00:19]} 37. Ng7 {[%clk 0:00:59.5]} 37... Qc6 {[%clk
0:00:16.4]} 38. Rxf7 {[%clk 0:00:56.5]} 38... c3 {[%clk 0:00:17]} 39. Qe1 {[%clk
0:00:39.5]} 39... c2 {[%clk 0:00:17.5]} 40. Qc1 {[%clk 0:00:39]} 40... Qxh6
{[%clk 0:00:18.1]} 41. Nxf5 {[%clk 0:00:35]} 41... Qh3 {[%clk 0:00:18.1]} 42.
Ng7 {[%clk 0:00:24.5]} 42... Qd3 {[%clk 0:00:14.8]} 43. e6 {[%clk 0:00:15]}
43... Qd1+ {[%clk 0:00:14.8]} 44. Kh2 {[%clk 0:00:12.3]} 44... Qxc1 {[%clk
0:00:14.8]} 45. e7 {[%clk 0:00:10.1]} 45... Qe1 {[%clk 0:00:13]} 46. Nf5 {[%clk
0:00:07.6]} 46... c1=Q {[%clk 0:00:12.5]} 0-1

[Event "Early-Titled-Tuesday-Blitz-April-16-2024"]
[Site "Chess.com"]
[Date "2024.04.16"]
[Round "8"]
[White "dosto07"]
[Black "SpongeBob_03"]
[Result "0-1"]
[WhiteElo "2512"]
[BlackElo "2267"]
[TimeControl "180+1"]
[EndTime "9:32:01 PDT"]
[Termination "SpongeBob_03 won on time"]

1. e4 {[%clk 0:02:36.9]} 1... c5 {[%clk 0:02:56.5]} 2. Nf3 {[%clk 0:02:36.6]}
2... e6 {[%clk 0:02:52.7]} 3. c3 {[%clk 0:02:36.3]} 3... d5 {[%clk 0:02:52.4]}
4. exd5 {[%clk 0:02:36.6]} 4... Qxd5 {[%clk 0:02:53]} 5. d4 {[%clk 0:02:37.5]}
5... Nf6 {[%clk 0:02:51.3]} 6. Na3 {[%clk 0:02:37.5]} 6... a6 {[%clk 0:02:49]}
7. Nc4 {[%clk 0:02:36.2]} 7... Nbd7 {[%clk 0:02:49.1]} 8. a4 {[%clk 0:02:25.2]}
8... Rb8 {[%clk 0:02:46.7]} 9. a5 {[%clk 0:02:24.8]} 9... b5 {[%clk 0:02:40.8]}
10. axb6 {[%clk 0:02:19.7]} 10... Nxb6 {[%clk 0:02:41.4]} 11. Nxb6 {[%clk
0:02:15.6]} 11... Rxb6 {[%clk 0:02:41.1]} 12. Be2 {[%clk 0:02:05.8]} 12... Bb7
{[%clk 0:02:40]} 13. O-O {[%clk 0:02:03.6]} 13... Bd6 {[%clk 0:02:36.9]} 14. c4
{[%clk 0:01:55.8]} 14... Qc6 {[%clk 0:02:29.7]} 15. Qa4 {[%clk 0:01:28.1]} 15...
Qxa4 {[%clk 0:02:12.1]} 16. Rxa4 {[%clk 0:01:27.6]} 16... Bxf3 {[%clk
0:02:11.4]} 17. Bxf3 {[%clk 0:01:25.9]} 17... cxd4 {[%clk 0:02:12.3]} 18. c5
{[%clk 0:00:59.7]} 18... Bxc5 {[%clk 0:02:11.2]} 19. Rc4 {[%clk 0:01:00.2]}
19... Nd7 {[%clk 0:02:07.8]} 20. Bd2 {[%clk 0:00:46.4]} 20... Rxb2 {[%clk
0:01:55.4]} 21. Ba5 {[%clk 0:00:42.8]} 21... Rb5 {[%clk 0:01:46.6]} 22. Bc7
{[%clk 0:00:40.9]} 22... Ke7 {[%clk 0:01:39.4]} 23. Bc6 {[%clk 0:00:40.4]} 23...
Rb4 {[%clk 0:01:39.8]} 24. Rcc1 {[%clk 0:00:19.8]} 24... Bd6 {[%clk 0:01:36.1]}
25. Ba5 {[%clk 0:00:12.3]} 25... Rb2 {[%clk 0:01:30.7]} 26. Rfd1 {[%clk
0:00:10.7]} 26... Ne5 {[%clk 0:01:31.1]} 27. Be4 {[%clk 0:00:09.9]} 27... Bc5
{[%clk 0:01:27.2]} 28. Rxc5 {[%clk 0:00:08.8]} 28... Nd7 {[%clk 0:01:25.3]} 29.
Rc7 {[%clk 0:00:08]} 29... e5 {[%clk 0:01:25]} 30. Bc6 {[%clk 0:00:07.7]} 30...
Rd8 {[%clk 0:01:15.5]} 31. Bxd7 {[%clk 0:00:07.2]} 31... Rxd7 {[%clk 0:01:15.4]}
32. Rxd7+ {[%clk 0:00:07.6]} 32... Kxd7 {[%clk 0:01:16.3]} 33. f4 {[%clk
0:00:07.8]} 33... f6 {[%clk 0:01:16.3]} 34. fxe5 {[%clk 0:00:07.5]} 34... fxe5
{[%clk 0:01:17.2]} 35. Re1 {[%clk 0:00:07.2]} 35... Rb5 {[%clk 0:01:16.6]} 36.
Bd2 {[%clk 0:00:06.8]} 36... a5 {[%clk 0:01:17]} 37. Ra1 {[%clk 0:00:06.3]}
37... e4 {[%clk 0:01:00.8]} 38. Bxa5 {[%clk 0:00:06.1]} 38... Rb2 {[%clk
0:00:57.8]} 39. Kf1 {[%clk 0:00:06.1]} 39... Ke6 {[%clk 0:00:56.8]} 40. Be1
{[%clk 0:00:06.5]} 40... Kf5 {[%clk 0:00:56.5]} 41. Ra5+ {[%clk 0:00:06.6]}
41... Kf4 {[%clk 0:00:56.5]} 42. Ra7 {[%clk 0:00:05.6]} 42... g5 {[%clk
0:00:56]} 43. Rf7+ {[%clk 0:00:05.4]} 43... Ke3 {[%clk 0:00:56.4]} 44. Rf2
{[%clk 0:00:04.6]} 44... Rb1 {[%clk 0:00:53.2]} 45. Re2+ {[%clk 0:00:04.4]}
45... Kd3 {[%clk 0:00:53.6]} 46. Rd2+ {[%clk 0:00:04.8]} 46... Ke3 {[%clk
0:00:51.5]} 47. Re2+ {[%clk 0:00:05.3]} 47... Kf4 {[%clk 0:00:52]} 48. Rf2+
{[%clk 0:00:05.1]} 48... Ke5 {[%clk 0:00:52.4]} 49. Rf8 {[%clk 0:00:05]} 49...
d3 {[%clk 0:00:51.4]} 50. Re8+ {[%clk 0:00:05.3]} 50... Kd4 {[%clk 0:00:51.1]}
51. Rd8+ {[%clk 0:00:05.8]} 51... Ke3 {[%clk 0:00:51.6]} 52. Rd7 {[%clk
0:00:04.4]} 52... h5 {[%clk 0:00:51.4]} 53. g3 {[%clk 0:00:04.5]} 53... Rb2
{[%clk 0:00:34.6]} 54. Rd6 {[%clk 0:00:04.6]} 54... Rxh2 {[%clk 0:00:34]} 55.
Rd7 {[%clk 0:00:03.5]} 55... Rh1+ {[%clk 0:00:34.2]} 56. Kg2 {[%clk 0:00:04]}
56... Rxe1 {[%clk 0:00:34.6]} 57. Re7 {[%clk 0:00:04]} 57... Re2+ {[%clk
0:00:34.7]} 58. Kh3 {[%clk 0:00:04.3]} 58... d2 {[%clk 0:00:35.1]} 59. Rd7
{[%clk 0:00:04.2]} 59... Re1 {[%clk 0:00:35.6]} 0-1

[Event "Early-Titled-Tuesday-Blitz-April-16-2024"]
[Site "Chess.com"]
[Date "2024.04.16"]
[Round "8"]
[White "ansko1999"]
[Black "DeArron_Fox"]
[Result "0-1"]
[WhiteElo "2630"]
[BlackElo "2539"]
[TimeControl "180+1"]
[EndTime "9:32:03 PDT"]
[Termination "DeArron_Fox won on time"]

1. c4 {[%clk 0:03:00.9]} 1... e6 {[%clk 0:02:59.6]} 2. Nc3 {[%clk 0:02:59]} 2...
d5 {[%clk 0:03:00]} 3. d4 {[%clk 0:02:59]} 3... Nf6 {[%clk 0:03:00.4]} 4. cxd5
{[%clk 0:02:58.7]} 4... exd5 {[%clk 0:03:01.3]} 5. Bg5 {[%clk 0:02:58.3]} 5...
Be7 {[%clk 0:03:01.7]} 6. Qc2 {[%clk 0:02:56.9]} 6... c6 {[%clk 0:03:02.1]} 7.
e3 {[%clk 0:02:56.9]} 7... Nbd7 {[%clk 0:03:02.3]} 8. Bd3 {[%clk 0:02:56.6]}
8... Nh5 {[%clk 0:03:02.9]} 9. Bxe7 {[%clk 0:02:53.6]} 9... Qxe7 {[%clk
0:03:03.8]} 10. Nge2 {[%clk 0:02:50.6]} 10... g6 {[%clk 0:03:03.9]} 11. O-O
{[%clk 0:02:48.5]} 11... O-O {[%clk 0:03:04.1]} 12. Rae1 {[%clk 0:02:48]} 12...
Ndf6 {[%clk 0:03:04.7]} 13. Qd2 {[%clk 0:02:37.3]} 13... b6 {[%clk 0:02:47.3]}
14. f3 {[%clk 0:02:34.4]} 14... c5 {[%clk 0:02:46]} 15. Nf4 {[%clk 0:02:19.8]}
15... Nxf4 {[%clk 0:02:40.2]} 16. exf4 {[%clk 0:02:20.7]} 16... Qd6 {[%clk
0:02:38.6]} 17. f5 {[%clk 0:02:09.6]} 17... cxd4 {[%clk 0:02:12.3]} 18. Nb5
{[%clk 0:02:08.6]} 18... Qd8 {[%clk 0:01:53.6]} 19. Nxd4 {[%clk 0:02:06]} 19...
Kg7 {[%clk 0:01:48.7]} 20. Re5 {[%clk 0:01:53.1]} 20... Qd6 {[%clk 0:01:41.7]}
21. Rfe1 {[%clk 0:01:51.5]} 21... Qc5 {[%clk 0:01:41.2]} 22. Bb1 {[%clk
0:01:36.4]} 22... Bd7 {[%clk 0:01:17.7]} 23. b4 {[%clk 0:01:16.8]} 23... Qd6
{[%clk 0:01:17.2]} 24. g4 {[%clk 0:01:05.8]} 24... Rfe8 {[%clk 0:00:34.7]} 25.
Qf4 {[%clk 0:00:54.2]} 25... Rxe5 {[%clk 0:00:11.5]} 26. Qxe5 {[%clk 0:00:43]}
26... Qxe5 {[%clk 0:00:08.9]} 27. Rxe5 {[%clk 0:00:43.9]} 27... g5 {[%clk
0:00:09]} 28. h4 {[%clk 0:00:34.7]} 28... h6 {[%clk 0:00:08.4]} 29. Re2 {[%clk
0:00:21.5]} 29... Rc8 {[%clk 0:00:06]} 30. Bd3 {[%clk 0:00:18.2]} 30... gxh4
{[%clk 0:00:05.8]} 31. Rh2 {[%clk 0:00:16.9]} 31... Rc1+ {[%clk 0:00:04.7]} 32.
Kf2 {[%clk 0:00:16.9]} 32... Rc3 {[%clk 0:00:04.8]} 33. Ke2 {[%clk 0:00:14.7]}
33... Ra3 {[%clk 0:00:04.5]} 34. Bb1 {[%clk 0:00:08.1]} 34... Ra4 {[%clk
0:00:03]} 35. Nc2 {[%clk 0:00:07.3]} 35... Bb5+ {[%clk 0:00:02.8]} 36. Ke3
{[%clk 0:00:07.4]} 36... Bc4 {[%clk 0:00:03.5]} 37. Rxh4 {[%clk 0:00:04.8]}
37... Bxa2 {[%clk 0:00:02.8]} 38. Bxa2 {[%clk 0:00:05.5]} 38... Rxa2 {[%clk
0:00:03.7]} 39. Nd4 {[%clk 0:00:06.1]} 39... Ne8 {[%clk 0:00:03]} 40. b5 {[%clk
0:00:06.3]} 40... Nd6 {[%clk 0:00:03.4]} 41. Kf4 {[%clk 0:00:06]} 41... Nc4
{[%clk 0:00:03.9]} 42. g5 {[%clk 0:00:05.1]} 42... hxg5+ {[%clk 0:00:04.8]} 43.
Kxg5 {[%clk 0:00:05.6]} 43... Rg2+ {[%clk 0:00:05.2]} 44. Kf4 {[%clk 0:00:05.9]}
44... Rd2 {[%clk 0:00:04.2]} 45. Rg4+ {[%clk 0:00:06]} 45... Kf6 {[%clk
0:00:03.7]} 46. Nc6 {[%clk 0:00:05.5]} 46... d4 {[%clk 0:00:02.8]} 47. Nxa7
{[%clk 0:00:04.9]} 47... d3 {[%clk 0:00:02.5]} 48. Rg1 {[%clk 0:00:05.5]} 48...
Re2 {[%clk 0:00:02.4]} 49. Nc6 {[%clk 0:00:04.9]} 49... d2 {[%clk 0:00:02.9]}
0-1